fUST/lending_fUST_20241018
["ID","MTS","AMOUNT","RATE_DAILY","PERIOD"]
[340402509,1729199440037,-300.0,0.00014099,2]
[340402510,1729199440047,-459.07370309,0.000141,2]
[340402511,1729199440057,-66303.47212424,0.000141,2]
[340402512,1729199440068,-470.69619474,0.00014144,2]
[340402513,1729199440078,-6586.95486366,0.00014182,2]
[340402514,1729199440088,-1728.15182495,0.00014182,2]
[340402515,1729199440098,-193.41087348,0.00014192,2]
[340402516,1729199440108,-74115.66505616,0.00014192,2]
[340402517,1729199440118,-180.648,0.00014192,2]
[340402518,1729199440128,-1074.55160583,0.00014225,2]
[340402519,1729199440138,-6586.95486366,0.0001429,2]
[340402520,1729199440147,-1728.15182495,0.0001429,2]
[340402521,1729199440157,-150.0,0.00014294,2]
[340402522,1729199440167,-150.112233,0.000143,2]
[340402523,1729199440177,-150.112233,0.000143,2]
[340402524,1729199440186,-150.112233,0.000143,2]
[340402525,1729199440196,-150.112233,0.000143,2]
[340402526,1729199440206,-150.112233,0.000143,2]
[340402527,1729199440216,-150.112233,0.000143,2]
[340402528,1729199440226,-150.112233,0.000143,2]
[340402529,1729199440236,-150.112233,0.000143,2]
[340402530,1729199440246,-150.112233,0.000143,2]
[340402531,1729199440256,-150.112239,0.000143,2]
[340402532,1729199440265,-150.112233,0.000143,2]
[340402533,1729199440275,-150.112233,0.000143,2]
[340402534,1729199440285,-202.383645,0.000143,2]
[340402535,1729199440294,-1557.84084027,0.00014305,2]
[340402548,1729199445797,6451.0540486,0.00013378,2]
[340402549,1729199469540,212.410759,0.00013409,2]
[340402550,1729199470010,212.410759,0.00013446,2]
[340402551,1729199470241,212.410759,0.00013483,2]
[340402552,1729199470554,212.410759,0.00013519,2]
[340402553,1729199470773,212.410759,0.00013556,2]
[340402554,1729199471013,212.410759,0.00013593,2]
[340402555,1729199471502,212.410759,0.0001363,2]
[340402556,1729199471774,212.410759,0.00013666,2]
[340402559,1729199472001,212.410759,0.00013703,2]
[340402560,1729199472248,212.410759,0.0001374,2]
[340402561,1729199472739,212.410759,0.00013777,2]
[340402562,1729199473241,212.410759,0.00013814,2]
[340402563,1729199473299,212.410759,0.0001385,2]
[340402564,1729199473357,212.410759,0.00013887,2]
[340402565,1729199473462,212.410759,0.00013924,2]
[340402566,1729199473690,212.410759,0.00013961,2]
[340402567,1729199473926,212.410759,0.00013997,2]
[340402683,1729199864369,250.0,0.00013699,2]
[340402685,1729199893466,183.85329,0.00013699,2]
[340402686,1729199915433,700.0,0.00014,2]
[340402688,1729199979108,3542.8020264,0.0001387,2]
[340402689,1729200041047,159.308069,0.00013324,2]
[340402690,1729200041288,159.308069,0.00013556,2]
[340402691,1729200041532,159.308069,0.00013787,2]
[340402693,1729200190287,10000.0,0.00014,2]
[340402698,1729200412387,250.0,0.00013699,2]
[340402705,1729200440182,183.85329,0.00013699,2]
[340402714,1729200622579,173.659976,0.00013338,2]
[340402715,1729200623260,173.659976,0.00013569,2]
[340402716,1729200623303,173.659976,0.00013801,2]
[340402728,1729200632335,-173.659976,0.00014033,2]
[340402729,1729200632344,-488.44179648,0.00014195,2]
[340402730,1729200632354,-3988.03449142,0.00014195,2]
[340402731,1729200632363,-300.0,0.00014204,2]
[340402732,1729200632374,-300.0,0.00014204,2]
[340402733,1729200632384,-1074.55160583,0.00014205,2]
[340402734,1729200632393,-180.648,0.00014215,2]
[340402735,1729200632403,-500.0,0.00014273,2]
[340402736,1729200632414,-500.0,0.00014273,2]
[340402737,1729200632424,-500.0,0.00014273,2]
[340402738,1729200632435,-500.0,0.00014273,2]
[340402739,1729200632445,-500.0,0.00014273,2]
[340402740,1729200632456,-619.59164557,0.00014273,2]
[340402741,1729200632466,-500.0,0.00014273,2]
[340402742,1729200632475,-500.0,0.00014273,2]
[340402743,1729200632485,-500.0,0.00014273,2]
[340402744,1729200632495,-500.0,0.00014273,2]
[340402745,1729200632505,-501.70662504,0.00014273,2]
[340402746,1729200632515,-500.0,0.00014273,2]
[340402747,1729200632524,-500.0,0.00014273,2]
[340402748,1729200632535,-500.0,0.00014273,2]
[340402749,1729200632761,-500.0,0.00014273,2]
[340402750,1729200632771,-500.0,0.00014273,2]
[340402751,1729200632782,-979.50746872,0.00014294,2]
[340402752,1729200632792,-11219.85839094,0.00014295,2]
[340402753,1729200632805,-6863.31122358,0.00014295,2]
[340402754,1729200632816,-4651.65368527,0.00014295,2]
[340402772,1729200638643,-500.0,0.00014273,2]
[340402773,1729200638654,-500.0,0.00014273,2]
[340402774,1729200638664,-500.0,0.00014273,2]
[340402775,1729200638674,-322.99996231,0.00014294,2]
[340402776,1729200638684,-240.02197827,0.00014294,2]
[340402777,1729200638694,-500.0,0.00014294,2]
[340402778,1729200638706,-500.0,0.00014294,2]
[340402779,1729200638718,-500.0,0.00014294,2]
[340402780,1729200638728,-500.0,0.00014294,2]
[340402781,1729200638738,-500.0,0.00014294,2]
[340402782,1729200638748,-500.0,0.00014294,2]
[340402783,1729200638758,-169.98210872,0.00014294,2]
[340402784,1729200638768,-500.0,0.00014294,2]
[340402785,1729200638778,-1025.70319595,0.00014295,2]
[340402786,1729200638788,-3173.43395048,0.00014295,2]
[340402817,1729200646377,-322.0,0.00014273,2]
[340402821,1729200791346,2272.37631393,0.00014,2]
[340402824,1729200880567,2834.241621,0.0001387,2]
[340402827,1729200933901,250.0,0.00013699,2]
[340402828,1729200942693,183.85329,0.00013699,2]
[340402831,1729201014090,658.48,0.00013265,2]
[340402833,1729201066236,500.0,8.972e-05,2]
[340402834,1729201067826,500.0,0.00010342,2]
[340402835,1729201069385,500.0,0.00011712,2]
[340402836,1729201070948,500.0,0.00013082,2]
[340402839,1729201138891,178.443942,0.00013278,2]
[340402840,1729201139109,178.443942,0.00013969,2]
[340402852,1729201214023,500.0,9.686e-05,2]
[340402853,1729201215636,500.0,0.00012426,2]
[340402858,1729201499235,176.6403231,0.00013699,2]
[340402859,1729201519553,24900.0,0.00013131,2]
[340402860,1729201543866,250.0,0.00013699,2]
[340402872,1729201780466,2512.0406418,0.0001387,2]
[340402873,1729201803415,799.32,0.0001401,2]
[340403067,1729201841428,-3489.53018001,0.00014062,2]
[340403069,1729201841439,-634.4446258,0.00014073,2]
[340403071,1729201841452,-634.44462579,0.00014101,2]
[340403072,1729201841462,-465.28480973,0.00014108,2]
[340403073,1729201841473,-300.0,0.00014128,2]
[340403074,1729201841482,-300.0,0.00014128,2]
[340403075,1729201841492,-634.44462579,0.00014129,2]
[340403076,1729201841502,-634.44462579,0.00014157,2]
[340403077,1729201841512,-1009.08010194,0.00014161,2]
[340403078,1729201841523,-9041.58480726,0.00014162,2]
[340403079,1729201841534,-2838.67844061,0.00014162,2]
[340403080,1729201841545,-1275.32146721,0.00014162,2]
[340403081,1729201841556,-26142.8300221,0.00014162,2]
[340403082,1729201841567,-60266.2182154,0.00014162,2]
[340403083,1729201841579,-693.21,0.00014171,2]
[340403084,1729201841591,-500.0,0.00014171,2]
[340403085,1729201841602,-137450.87423025,0.00014172,2]
[340403086,1729201841612,-500.0,0.00014173,2]
[340403087,1729201841623,-500.0,0.00014173,2]
[340403088,1729201841634,-304.96434827,0.00014173,2]
[340403089,1729201841646,-200.69148877,0.00014173,2]
[340403090,1729201841657,-500.0,0.00014173,2]
[340403091,1729201841667,-534.8659957,0.00014173,2]
[340403092,1729201841677,-500.0,0.00014173,2]
[340403093,1729201841688,-500.0,0.00014173,2]
[340403094,1729201841699,-500.0,0.00014173,2]
[340403095,1729201841709,-395.09677809,0.00014173,2]
[340403096,1729201841719,-500.0,0.00014173,2]
[340403097,1729201841729,-253.3807633,0.00014173,2]
[340403098,1729201841740,-178.93197883,0.00014173,2]
[340403099,1729201841750,-500.0,0.00014173,2]
[340403100,1729201841759,-500.0,0.00014173,2]
[340403101,1729201841769,-500.0,0.00014173,2]
[340403102,1729201841779,-500.0,0.00014173,2]
[340403103,1729201841789,-500.0,0.00014173,2]
[340403104,1729201841799,-500.0,0.00014173,2]
[340403105,1729201841809,-500.0,0.00014173,2]
[340403106,1729201841818,-500.0,0.00014173,2]
[340403107,1729201841828,-500.0,0.00014173,2]
[340403108,1729201841839,-500.0,0.00014173,2]
[340403109,1729201841848,-150.0,0.00014184,2]
[340403110,1729201841859,-634.44462579,0.00014185,2]
[340403111,1729201841869,-967.09644522,0.0001419,2]
[340403112,1729201841879,-1000.0,0.000142,2]
[340403113,1729201841889,-243.75048427,0.000142,2]
[340403114,1729201841898,-1000.0,0.000142,2]
[340403115,1729201841910,-1000.0,0.000142,2]
[340403116,1729201841919,-150.112233,0.000142,2]
[340403117,1729201841930,-150.112233,0.000142,2]
[340403118,1729201841940,-150.112233,0.000142,2]
[340403119,1729201841950,-150.112233,0.000142,2]
[340403120,1729201841960,-150.112233,0.000142,2]
[340403121,1729201841972,-150.112233,0.000142,2]
[340403122,1729201841982,-272.02617863,0.000142,2]
[340403123,1729201841992,-877.38913227,0.000142,2]
[340403124,1729201842002,-1000.0,0.000142,2]
[340403125,1729201842011,-1004.06406225,0.000142,2]
[340403126,1729201842021,-1000.0,0.000142,2]
[340403127,1729201842030,-635.70517618,0.000142,2]
[340403128,1729201842040,-1000.0,0.000142,2]
[340403129,1729201842050,-620.1042838,0.000142,2]
[340403130,1729201842059,-1000.0,0.000142,2]
[340403131,1729201842069,-1009.00409653,0.000142,2]
[340403132,1729201842079,-1000.0,0.00014205,2]
[340403133,1729201842089,-500.0,0.00014239,2]
[340403134,1729201842099,-500.0,0.00014239,2]
[340403135,1729201842110,-500.0,0.00014239,2]
[340403136,1729201842123,-500.0,0.00014239,2]
[340403137,1729201842133,-500.0,0.00014239,2]
[340403138,1729201842144,-500.0,0.00014239,2]
[340403139,1729201842154,-500.0,0.00014239,2]
[340403140,1729201842164,-500.0,0.00014239,2]
[340403141,1729201842175,-500.0,0.00014239,2]
[340403142,1729201842187,-500.0,0.00014239,2]
[340403143,1729201842198,-489.15381261,0.00014239,2]
[340403144,1729201842208,-291.55541364,0.00014239,2]
[340403145,1729201842218,-500.0,0.00014239,2]
[340403146,1729201842229,-500.0,0.00014239,2]
[340403147,1729201842239,-500.0,0.00014239,2]
[340403148,1729201842248,-500.0,0.00014239,2]
[340403149,1729201842260,-500.0,0.00014239,2]
[340403150,1729201842270,-500.0,0.00014239,2]
[340403151,1729201842281,-151.0,0.0001424,2]
[340403152,1729201842292,-151.0,0.0001424,2]
[340403153,1729201842302,-2118.060341,0.0001424,2]
[340403154,1729201842312,-2118.060341,0.0001424,2]
[340403155,1729201842323,-1130.760641,0.0001424,2]
[340403156,1729201842332,-151.0,0.0001424,2]
[340403157,1729201842342,-1500.0,0.0001424,2]
[340403158,1729201842351,-1500.0,0.0001424,2]
[340403159,1729201842363,-1500.0,0.0001424,2]
[340403160,1729201842374,-1331.46783252,0.0001424,2]
[340403161,1729201842396,-168.53216748,0.0001424,2]
[340403162,1729201842406,-1500.0,0.0001424,2]
[340403163,1729201842415,-13071.4150111,0.00014263,2]
[340403164,1729201842425,-30133.1091077,0.00014263,2]
[340403165,1729201842434,-151.0,0.00014263,2]
[340403166,1729201842444,-151.0,0.00014263,2]
[340403167,1729201842454,-151.0,0.00014263,2]
[340403168,1729201842464,-151.0,0.00014263,2]
[340403169,1729201842474,-602.96739119,0.00014273,2]
[340403170,1729201842484,-500.0,0.00014273,2]
[340403171,1729201842494,-500.0,0.00014273,2]
[340403172,1729201842506,-500.0,0.00014273,2]
[340403173,1729201842516,-500.0,0.00014273,2]
[340403174,1729201842526,-500.0,0.00014273,2]
[340403175,1729201842536,-300.56968737,0.00014273,2]
[340403176,1729201842547,-500.0,0.00014273,2]
[340403177,1729201842557,-501.23911136,0.00014273,2]
[340403178,1729201842567,-303.18942379,0.00014273,2]
[340403179,1729201842577,-500.0,0.00014273,2]
[340403180,1729201842587,-500.0,0.00014273,2]
[340403181,1729201842596,-609.16492868,0.00014273,2]
[340403182,1729201842609,-160.06034584,0.00014273,2]
[340403183,1729201842621,-151.0,0.00014273,2]
[340403184,1729201842630,-301.746284,0.00014273,2]
[340403185,1729201842640,-301.746284,0.00014273,2]
[340403186,1729201842650,-151.0,0.00014273,2]
[340403187,1729201842660,-151.0,0.00014273,2]
[340403188,1729201842670,-151.0,0.00014273,2]
[340403189,1729201842680,-2284.765321,0.00014273,2]
[340403190,1729201842689,-2284.765321,0.00014273,2]
[340403191,1729201842700,-312.558558,0.00014273,2]
[340403192,1729201842709,-312.558558,0.00014273,2]
[340403193,1729201842719,-284.476056,0.00014273,2]
[340403194,1729201842729,-284.476056,0.00014273,2]
[340403195,1729201842739,-595.200913,0.00014273,2]
[340403196,1729201842749,-595.200913,0.00014273,2]
[340403197,1729201842759,-151.0,0.00014273,2]
[340403198,1729201842768,-151.0,0.00014273,2]
[340403199,1729201842778,-12151.0098565,0.00014275,2]
[340403218,1729202085393,250.0,0.00013699,2]
[340403219,1729202088338,24900.0,0.00013226,2]
[340403223,1729202211347,178.4439504,0.00013332,2]
[340403229,1729202404573,500.0,0.0001,2]
[340403230,1729202404982,500.0,0.0001,2]
[340403231,1729202405285,500.0,0.0001,2]
[340403232,1729202405687,161.47933569,0.0001,2]
[340403233,1729202445670,258.987,0.00013972,2]
[340403234,1729202458070,150.715,0.00013972,2]
[340403237,1729202555284,150.0,0.00012,3]
[340403238,1729202573657,250.0,0.00013699,2]
[340403239,1729202585727,24900.0,0.00013213,2]
[340403241,1729202594158,229.0,0.000116,2]
[340403242,1729202594302,150.0,0.00013,5]
[340403244,1729202609904,150.0,0.00014,4]
[340403245,1729202616724,150.13,0.00014,6]
[340403248,1729202679841,2009.6325134,0.0001368,2]
[340403250,1729202725855,169.629418,0.00013305,2]
[340403251,1729202726108,169.629418,0.00013369,2]
[340403252,1729202726352,169.629418,0.00013432,2]
[340403254,1729202729667,169.629418,0.00013495,2]
[340403255,1729202729920,169.629418,0.00013558,2]
[340403256,1729202730154,169.629418,0.00013621,2]
[340403257,1729202730617,169.629418,0.00013684,2]
[340403258,1729202731199,169.629418,0.00013747,2]
[340403259,1729202731426,169.629418,0.0001381,2]
[340403260,1729202731719,169.629418,0.00013873,2]
[340403261,1729202731952,169.629418,0.00013936,2]
[340403262,1729202732189,169.629418,0.00013999,2]
[340403285,1729203031669,-3053.3389075,0.0001415,2]
[340403286,1729203031678,-158.90604318,0.00014155,2]
[340403287,1729203031688,-977.55046227,0.0001416,2]
[340403288,1729203031698,-2009.6325134,0.0001418,2]
[340403289,1729203031707,-300.0,0.00014239,2]
[340403290,1729203031717,-300.0,0.00014239,2]
[340403291,1729203031727,-1198.588009,0.0001424,2]
[340403292,1729203031736,-1198.588009,0.0001424,2]
[340403293,1729203031745,-439.71067,0.0001424,2]
[340403294,1729203031755,-439.71067,0.0001424,2]
[340403295,1729203031764,-151.0,0.0001424,2]
[340403296,1729203031773,-850.21431147,0.00014245,2]
[340403297,1729203031783,-15525.3496418,0.00014246,2]
[340403298,1729203031792,-25613.1427416,0.00014246,2]
[340403299,1729203031802,-1579.22489038,0.0001425,2]
[340403302,1729203038079,-346.73806485,0.0001425,2]
[340403312,1729203039691,-13599.38668657,0.0001425,2]
[340403313,1729203039701,-25613.1427416,0.0001425,2]
[340403314,1729203039710,-15525.3496418,0.0001425,2]
[340403315,1729203039719,-25613.1427416,0.0001425,2]
[340403316,1729203039728,-150.0,0.00014253,2]
[340403317,1729203039738,-153.525139,0.00014253,2]
[340403318,1729203039747,-153.525139,0.00014253,2]
[340403319,1729203039756,-153.525139,0.00014253,2]
[340403320,1729203039765,-153.525139,0.00014253,2]
[340403321,1729203039774,-220.740095,0.00014253,2]
[340403322,1729203039784,-31050.6992836,0.00014253,2]
[340403323,1729203039794,-51226.2854832,0.00014253,2]
[340403324,1729203039803,-500.0,0.00014253,2]
[340403325,1729203039812,-500.0,0.00014253,2]
[340403326,1729203039821,-500.0,0.00014253,2]
[340403327,1729203039830,-500.0,0.00014253,2]
[340403328,1729203039839,-500.0,0.00014253,2]
[340403329,1729203039849,-500.0,0.00014253,2]
[340403330,1729203039859,-500.0,0.00014253,2]
[340403331,1729203039868,-500.0,0.00014253,2]
[340403332,1729203039877,-489.15381261,0.00014253,2]
[340403333,1729203039886,-500.0,0.00014253,2]
[340403334,1729203039896,-500.0,0.00014253,2]
[340403335,1729203039906,-500.0,0.00014253,2]
[340403336,1729203039915,-500.0,0.00014253,2]
[340403337,1729203039927,-500.0,0.00014253,2]
[340403338,1729203039941,-500.0,0.00014253,2]
[340403339,1729203039951,-241.55541364,0.00014253,2]
[340403340,1729203039962,-500.0,0.00014253,2]
[340403341,1729203039972,-500.0,0.00014253,2]
[340403342,1729203039982,-153.525139,0.00014254,2]
[340403343,1729203039991,-153.525139,0.00014254,2]
[340403344,1729203040000,-153.525139,0.00014254,2]
[340403345,1729203040009,-153.525139,0.00014254,2]
[340403346,1729203040018,-31050.6992836,0.00014254,2]
[340403347,1729203040028,-51226.2854832,0.00014254,2]
[340403348,1729203040036,-15525.3496418,0.00014254,2]
[340403349,1729203040046,-25613.1427416,0.00014254,2]
[340403350,1729203040055,-4520.79240363,0.00014255,2]
[340403351,1729203040065,-1419.33922031,0.00014255,2]
[340403352,1729203040074,-6061.05037524,0.00014255,2]
[340403362,1729203094343,250.0,0.00013699,2]
[340403367,1729203194996,2807.6286949,0.00013254,2]
[340403369,1729203224647,169.629418,0.00013351,2]
[340403370,1729203225106,169.629418,0.00013525,2]
[340403371,1729203225313,169.629418,0.00013699,2]
[340403372,1729203225516,169.629418,0.00013873,2]
[340403383,1729203579637,1205.779508,0.0001368,2]
[340403384,1729203639869,250.0,0.00013699,2]
[340403388,1729203830850,169.629418,0.0001328,2]
[340403389,1729203831116,169.629418,0.00013626,2]
[340403390,1729203831409,169.629418,0.00013972,2]
[340403407,1729204108720,3130.85374956,0.000134,2]
[340403412,1729204182423,250.0,0.00013699,2]
[340403422,1729204231903,-2234.58730862,0.00014011,2]
[340403426,1729204238211,-667.28370789,0.00014011,2]
[340403427,1729204238222,-2442.84855459,0.00014011,2]
[340403428,1729204238231,-465.01424049,0.00014073,2]
[340403429,1729204238241,-300.0,0.00014101,2]
[340403430,1729204238250,-300.0,0.00014101,2]
[340403431,1729204238260,-566.80954098,0.00014102,2]
[340403432,1729204238269,-1998.9427437,0.00014102,2]
[340403438,1729204239859,-56612.1933041,0.00014102,2]
[340403439,1729204239869,-167582.380095,0.00014102,2]
[340403440,1729204239878,-500.0,0.00014111,2]
[340403441,1729204239898,-500.0,0.00014111,2]
[340403442,1729204239908,-500.0,0.00014111,2]
[340403443,1729204239918,-500.0,0.00014111,2]
[340403444,1729204239928,-500.0,0.00014111,2]
[340403445,1729204239939,-500.0,0.00014111,2]
[340403446,1729204239948,-500.0,0.00014111,2]
[340403447,1729204239958,-500.0,0.00014111,2]
[340403448,1729204239968,-500.0,0.00014111,2]
[340403449,1729204239977,-500.0,0.00014111,2]
[340403450,1729204239988,-500.0,0.00014111,2]
[340403451,1729204239999,-560.79247833,0.00014111,2]
[340403452,1729204240008,-500.0,0.00014111,2]
[340403453,1729204240018,-500.0,0.00014111,2]
[340403454,1729204240027,-500.0,0.00014111,2]
[340403455,1729204240037,-500.0,0.00014111,2]
[340403456,1729204240046,-500.0,0.00014111,2]
[340403457,1729204240056,-500.0,0.00014111,2]
[340403458,1729204240066,-500.0,0.00014111,2]
[340403459,1729204240075,-500.0,0.00014111,2]
[340403460,1729204240085,-500.0,0.00014111,2]
[340403461,1729204240095,-500.0,0.00014111,2]
[340403462,1729204240104,-500.0,0.00014111,2]
[340403463,1729204240115,-500.0,0.00014111,2]
[340403464,1729204240125,-500.0,0.00014111,2]
[340403465,1729204240135,-500.0,0.00014111,2]
[340403466,1729204240146,-619.8219959,0.00014111,2]
[340403467,1729204240157,-4520.79240363,0.00014112,2]
[340403468,1729204240168,-1419.33922031,0.00014112,2]
[340403469,1729204240178,-64558.99666373,0.00014112,2]
[340403470,1729204240195,-3317.13404886,0.00014112,2]
[340403471,1729204241229,-80709.3888507,0.00014112,2]
[340403472,1729204241242,-101656.40391449,0.00014112,2]
[340403473,1729204241251,-1000.0,0.00014143,2]
[340403474,1729204241262,-1681.11723357,0.00014149,2]
[340403475,1729204241272,-500.0,0.00014173,2]
[340403476,1729204241281,-500.0,0.00014173,2]
[340403477,1729204241291,-500.0,0.00014173,2]
[340403478,1729204241300,-500.0,0.00014173,2]
[340403479,1729204241310,-500.0,0.00014173,2]
[340403480,1729204241320,-500.0,0.00014173,2]
[340403481,1729204241334,-500.0,0.00014173,2]
[340403482,1729204241344,-1205.779508,0.0001418,2]
[340403483,1729204241355,-150.112233,0.000142,2]
[340403484,1729204241365,-157.250148,0.000142,2]
[340403485,1729204241375,-1000.0,0.000142,2]
[340403486,1729204241385,-1000.0,0.000142,2]
[340403487,1729204241394,-1000.0,0.000142,2]
[340403488,1729204241403,-500.0,0.000142,2]
[340403489,1729204241417,-501.22112129,0.000142,2]
[340403490,1729204241427,-1000.0,0.000142,2]
[340403491,1729204241437,-1000.0,0.000142,2]
[340403492,1729204241446,-15176.50716765,0.00014215,2]
[340403493,1729204241587,439.59761685,0.00014002,2]
[340403515,1729204242908,-1920.58715088,0.00014215,2]
[340403524,1729204245933,-411.11179919,0.00014215,2]
[340403525,1729204245949,-3821.41430996,0.00014215,2]
[340403526,1729204245963,-548.53406688,0.00014215,2]
[340403527,1729204245976,-613.5885,0.00014215,2]
[340403528,1729204245995,-300.78721,0.00014215,2]
[340403529,1729204246047,-1173.6576485,0.00014215,2]
[340403530,1729204246059,-6386.08655708,0.00014215,2]
[340403532,1729204354279,169.629418,0.00013316,2]
[340403536,1729204480168,723.4677048,0.0001368,2]
[340403555,1729204815629,250.0,0.00013699,2]
[340403566,1729204930532,17854.766317,0.00013199,2]
[340403572,1729205129607,500.0,0.00013,3]
[340403573,1729205140685,500.0,0.000135,3]
[340403574,1729205150687,721.11,0.000138,3]
[340403577,1729205164835,500.0,0.00014,3]
[340403578,1729205194287,300.0,0.00014,3]
[340403591,1729205379850,578.7741638,0.0001368,2]
[340403637,1729205440232,-1041.99885653,0.00014049,2]
[340403638,1729205440243,-395.63785512,0.00014116,2]
[340403639,1729205440252,-6228.12241478,0.00014123,2]
[340403640,1729205440263,-300.0,0.00014139,2]
[340403641,1729205440272,-300.0,0.00014139,2]
[340403642,1729205440281,-1000.0,0.00014139,2]
[340403643,1729205440291,-2097.16911513,0.0001414,2]
[340403644,1729205440300,-1000.0,0.00014162,2]
[340403645,1729205440310,-578.7741638,0.0001418,2]
[340403646,1729205440319,-1000.0,0.000142,2]
[340403647,1729205440328,-150.112233,0.000142,2]
[340403648,1729205440337,-150.112233,0.000142,2]
[340403649,1729205440347,-150.112233,0.000142,2]
[340403650,1729205440356,-150.112233,0.000142,2]
[340403651,1729205440365,-150.112233,0.000142,2]
[340403652,1729205440375,-150.112233,0.000142,2]
[340403653,1729205440387,-150.112233,0.000142,2]
[340403654,1729205440396,-150.112233,0.000142,2]
[340403655,1729205440406,-150.112233,0.000142,2]
[340403656,1729205440415,-150.112233,0.000142,2]
[340403657,1729205440424,-150.112233,0.000142,2]
[340403659,1729205440433,-150.112233,0.000142,2]
[340403661,1729205440443,-150.112233,0.000142,2]
[340403662,1729205440452,-150.112233,0.000142,2]
[340403663,1729205440461,-150.112233,0.000142,2]
[340403664,1729205440470,-150.112233,0.000142,2]
[340403665,1729205440479,-202.383645,0.000142,2]
[340403666,1729205440489,-151.0,0.00014216,2]
[340403667,1729205440497,-151.0,0.00014216,2]
[340403668,1729205440507,-151.0,0.00014216,2]
[340403669,1729205440516,-151.0,0.00014216,2]
[340403670,1729205440525,-210.171602,0.00014216,2]
[340403671,1729205440534,-210.171602,0.00014216,2]
[340403672,1729205440543,-877.96531451,0.00014225,2]
[340403673,1729205440553,-151.0,0.00014225,2]
[340403674,1729205440562,-151.0,0.00014225,2]
[340403675,1729205440571,-151.0,0.00014225,2]
[340403676,1729205440580,-151.0,0.00014225,2]
[340403677,1729205440590,-210.171602,0.00014225,2]
[340403678,1729205440599,-210.171602,0.00014225,2]
[340403679,1729205440608,-150.0,0.00014225,2]
[340403680,1729205440617,-13448.6285586,0.00014225,2]
[340403681,1729205440626,-25752.6776665,0.00014225,2]
[340403682,1729205440635,-26897.2571171,0.00014226,2]
[340403683,1729205440644,-51505.355333,0.00014226,2]
[340403684,1729205440653,-151.0,0.00014228,2]
[340403685,1729205440663,-151.0,0.00014228,2]
[340403686,1729205440674,-151.0,0.00014228,2]
[340403687,1729205440683,-151.0,0.00014228,2]
[340403688,1729205440692,-210.171602,0.00014228,2]
[340403689,1729205440702,-210.171602,0.00014228,2]
[340403690,1729205440711,-26897.2571171,0.00014229,2]
[340403691,1729205440720,-47354.22685353,0.00014229,2]
[340403692,1729205442607,250.0,0.00013699,2]
[340403697,1729205443140,-311.69803547,0.00014229,2]
[340403698,1729205443153,-2931.61949283,0.00014229,2]
[340403699,1729205443165,-470.30864695,0.00014229,2]
[340403722,1729205446173,-437.50230422,0.00014229,2]
[340403723,1729205446184,-664.33,0.00014229,2]
[340403724,1729205446194,-374.39308205,0.00014229,2]
[340403725,1729205446204,-350.10320335,0.00014229,2]
[340403726,1729205471095,501.54,0.00014,2]
[340403750,1729205927859,-8686.18885271,0.0001403,2]
[340403751,1729205927884,-300.0,0.00014128,2]
[340403752,1729205927911,-300.0,0.00014128,2]
[340403753,1729205927937,-1000.0,0.0001413,2]
[340403754,1729205927963,-2044.59436899,0.00014139,2]
[340403755,1729205927988,-150.112233,0.000142,2]
[340403756,1729205928014,-150.112233,0.000142,2]